bitfinex-derivatives/quotes_SOLF0:USTF0_20250228
["timestamp","ask_amount","ask_price","bid_price","bid_amount"]
[1740732096594,3.7488,129.87,129.81,0.05121557]
[1740732096999,11.4573,129.87,129.83,7.7105]
[1740732097591,3.7488,129.87,129.84,0.05898259]
[1740732097792,7.7092,129.86,129.82,7.7111]
[1740732097988,3.7488,129.87,129.84,0.0574498]
[1740732098293,3.7488,129.87,129.74,139.34944255]
[1740732098597,3.7488,129.87,129.78,7.7132]
[1740732099297,0.05609213,129.84,129.81,0.05784641]
[1740732099495,0.05609213,129.84,129.77,7.714]
[1740732099699,17.0088,129.87,129.73,209.7]
[1740732100495,17.0088,129.87,129.73,239.91270922]
[1740732100696,0.05611499,129.81,129.79,0.04971274]
[1740732100896,7.7116,129.82,129.77,7.7138]
[1740732101093,7.7116,129.82,129.79,0.05120468]
[1740732101294,0.05738301,129.81,129.79,0.05120468]
[1740732103301,7.76968301,129.81,129.79,0.05120468]
[1740732103501,7.76968301,129.81,129.77,7.714]
[1740732103901,0.05738301,129.81,129.78,7.7136]
[1740732104202,7.7115,129.82,129.78,7.7136]
[1740732104703,0.05174012,129.81,129.79,0.05847982]
[1740732104900,0.05174012,129.81,129.79,7.77107982]
[1740732105199,0.05174012,129.81,129.79,0.05847982]
[1740732105599,0.05174012,129.81,129.8,7.7124]
[1740732105799,0.05174012,129.81,129.79,0.05847982]
[1740732106801,0.05174012,129.81,129.7,0.0887]
[1740732107001,1.39006762,129.86,129.7,0.0887]
[1740732107795,1.39006762,129.86,129.68,110.8763338]
[1740732107996,0.05599835,129.8,129.77,0.05925039]
[1740732108303,13.26,129.8,129.68,110.7799338]
[1740732108604,194.0233,129.79,129.68,110.7799338]
[1740732108801,7.7188,129.7,129.68,110.7799338]
[1740732109199,194.0233,129.79,129.68,110.7799338]
[1740732109696,0.0548716,129.75,129.72,0.05365277]
[1740732109895,0.0548716,129.75,129.74,7.716]
[1740732110097,4.0233,129.79,129.72,0.05365277]
[1740732110496,127.02011725,129.85,129.77,7.7137]
[1740732110698,4.0233,129.84,129.72,0.05365277]
[1740732110999,4.0233,129.84,129.69,0.1452]
[1740732111199,4.0233,129.84,129.7,13.34]
[1740732111395,9.695e-05,129.79,129.77,0.052134]
[1740732111599,9.695e-05,129.79,129.78,7.7136]
[1740732111802,4.0233,129.84,129.77,0.052134]
[1740732112004,4.0233,129.84,129.82,7.7112]
[1740732112305,4.0233,129.84,129.7,152.68944255]
[1740732112999,0.05659342,129.78,129.76,0.04898095]
[1740732113206,4.0233,129.84,129.77,7.7142]
[1740732113504,0.05613958,129.78,129.76,0.05489114]
[1740732113700,7.7117,129.82,129.7,152.68944255]
[1740732113901,0.04991542,129.78,129.71,19.06490555]
[1740732114102,0.04991542,129.78,129.75,0.05108782]
[1740732114808,7.76371542,129.78,129.75,0.05108782]
[1740732115110,0.04991542,129.78,129.75,0.05108782]
[1740732117510,7.7144,129.77,129.75,0.05108782]
[1740732117711,0.04991542,129.78,129.75,0.05108782]
[1740732118006,4.0233,129.77,129.68,30.21270922]
[1740732118213,7.9921,129.77,129.68,30.21270922]
[1740732118610,7.7162,129.74,129.68,30.21270922]
[1740732118910,7.9921,129.77,129.68,30.21270922]
[1740732119209,0.04910909,129.72,129.7,0.0565988]
[1740732119610,7.9921,129.77,129.7,0.0565988]
[1740732119804,0.05126914,129.72,129.7,0.0565988]
[1740732120009,7.9921,129.77,129.7,0.0565988]
[1740732120209,0.05020333,129.72,129.62,5.99854181]
[1740732120409,7.9921,129.77,129.69,7.719]
[1740732120610,7.9921,129.77,129.62,5.99854181]
[1740732121113,13.32,129.82,129.62,7.54151357]
[1740732121407,3.7947,129.8,129.75,7.7149]
[1740732121611,3.7947,129.8,129.71,0.05664853]
[1740732121911,7.715,129.76,129.67,13.32]
[1740732122110,3.7947,129.8,129.67,13.32]
[1740732122314,0.05443339,129.77,129.74,0.05847873]
[1740732122907,0.05443339,129.77,129.76,7.7148]
[1740732123716,0.05443339,129.77,129.74,0.05847873]
[1740732125214,0.05443339,129.77,129.76,7.7148]
[1740732125716,0.05443339,129.77,129.74,0.05847873]
[1740732126307,7.76923339,129.77,129.74,0.05847873]
[1740732126512,0.05443339,129.77,129.74,0.05847873]
[1740732126817,7.7154,129.75,129.7,7.7183]
[1740732127319,7.7154,129.75,129.65,43.53270922]
[1740732127616,3.7194,129.76,129.65,43.53270922]
[1740732127816,3.7194,129.76,129.65,30.21270922]
[1740732128008,7.77307623,129.72,129.69,0.05385572]
[1740732128407,0.05587623,129.72,129.69,0.05385572]
[1740732128613,0.05587623,129.72,129.62,129.77231709]
[1740732129009,1.39127535,129.74,129.62,129.77231709]
[1740732129408,213.14,129.73,129.62,123.71191709]
[1740732129613,7.7224,129.64,129.62,117.64781709]
[1740732129812,13.34,129.68,129.62,99.45221709]
[1740732130016,13.34,129.67,129.62,63.53102733]
[1740732130317,7.7214,129.65,129.55,7.7268]
[1740732130520,0.05151551,129.66,129.63,0.05017127]
[1740732130722,13.34,129.67,129.55,0.0973]
[1740732130921,0.05555838,129.66,129.55,0.0973]
[1740732131116,13.34,129.67,129.63,0.05164803]
[1740732131320,0.0586667,129.62,129.55,0.0973]
[1740732131521,13.34,129.67,129.57,7.7256]
[1740732131720,0.05492128,129.6,129.57,7.78221832]
[1740732131922,13.34,129.67,129.57,7.7256]
[1740732132118,13.34,129.67,129.57,7.78403326]
[1740732132323,0.05477667,129.6,129.57,7.78403326]
[1740732132520,13.34,129.67,129.55,3.7297]
[1740732132722,0.04883273,129.6,129.57,0.05813586]
[1740732132926,0.04883273,129.6,129.55,3.7297]
[1740732133123,13.34,129.67,129.57,0.05152185]
[1740732133423,13.34,129.67,129.55,3.7297]
[1740732133627,13.34,129.67,129.61,0.05714576]
[1740732133820,0.05574875,129.62,129.61,0.05714576]
[1740732134013,13.34,129.67,129.61,0.05714576]
[1740732134216,0.05407329,129.63,129.61,0.05714576]
[1740732134916,0.05407329,129.63,129.61,7.78074576]
[1740732135117,0.05407329,129.63,129.61,0.05714576]
[1740732136624,0.05407329,129.63,129.61,7.78044576]
[1740732136826,0.05407329,129.63,129.61,0.05714576]
[1740732137525,0.05407329,129.63,129.62,7.7231]
[1740732138323,0.05407329,129.63,129.61,7.78074576]
[1740732138524,0.05407329,129.63,129.61,0.05714576]
[1740732139530,7.77707329,129.63,129.61,0.05714576]
[1740732140725,0.05407329,129.63,129.61,0.05714576]
[1740732140930,3.91407329,129.63,129.53,0.3621]
[1740732141131,0.05407329,129.63,129.53,0.3621]
[1740732141330,23.14,129.64,129.47,7.7664]
[1740732141630,23.14,129.64,129.48,3.9918]
[1740732142130,0.05556188,129.57,129.55,0.05822953]
[1740732142325,13.45556188,129.57,129.55,0.05822953]
[1740732142531,13.4,129.57,129.48,3.9918]
[1740732142732,13.45799654,129.57,129.55,0.04905033]
[1740732142932,13.4,129.57,129.48,3.9918]
[1740732143235,0.05194237,129.57,129.55,0.0487157]
[1740732143530,7.7202,129.67,129.59,7.7249]
[1740732143730,13.4,129.7,129.48,17.3918]
[1740732143931,1.39190369,129.69,129.49,2.96416412]
[1740732144229,223.4,129.75,129.5,2.96375829]
[1740732144430,1.39153946,129.74,129.51,212.96363904]
[1740732144731,2.304e-05,129.64,129.61,0.05886012]
[1740732144934,2.304e-05,129.64,129.61,13.45886012]
[1740732145132,84.76634321,129.78,129.7,7.7179]
[1740732145433,84.76634321,129.78,129.71,3.8215]
[1740732145731,84.76634321,129.78,129.73,7.7165]
[1740732145934,84.76634321,129.77,129.72,3.7513]
[1740732146335,0.0550732,129.76,129.74,0.05513741]
[1740732146532,84.76634321,129.77,129.74,0.05513741]
[1740732146731,78.70484321,129.77,129.74,0.05513741]
[1740732147738,78.75362643,129.77,129.74,0.05513741]
[1740732149131,3.6873,129.84,129.74,0.05513741]
[1740732149339,13.4,129.89,129.72,3.7513]
[1740732149539,7.7106,129.84,129.73,7.7163]
[1740732149836,3.6873,129.88,129.72,3.7513]
[1740732150036,1.38997094,129.87,129.72,3.7513]
[1740732150225,0.04919474,129.81,129.79,8.096e-05]
[1740732150432,13.44919474,129.81,129.79,8.096e-05]
[1740732150736,7.7147,129.77,129.69,3.8157]
[1740732150935,3.9807,129.8,129.69,3.8157]
[1740732151333,7.7136,129.78,129.7,7.7184]
[1740732151535,0.05261071,129.76,129.73,0.05378115]
[1740732156341,0.05261071,129.76,129.73,7.77018115]
[1740732156540,0.05261071,129.76,129.73,0.05378115]
[1740732157241,7.7158,129.75,129.73,0.05378115]
[1740732157631,0.05261071,129.76,129.73,0.05378115]
[1740732157835,7.716,129.74,129.73,0.05378115]
[1740732158037,0.05261071,129.76,129.73,0.05378115]
[1740732159842,0.05261071,129.76,129.74,7.7156]
[1740732160246,13.44,129.87,129.73,0.05378115]
[1740732160445,3.6682,129.85,129.71,3.9424]
[1740732161338,11.3779,129.85,129.8,7.712]
[1740732161545,3.6682,129.85,129.77,0.05238355]
[1740732161747,0.05576914,129.84,129.71,143.29184255]
[1740732161939,0.05576914,129.84,129.8,0.05752243]
[1740732162141,3.6682,129.85,129.76,7.7147]
[1740732162341,0.05118681,129.83,129.81,0.05472203]
[1740732162547,7.7112,129.82,129.81,0.05472203]
[1740732162843,0.05667822,129.83,129.8,0.05364502]
[1740732163036,7.7118,129.81,129.8,0.05364502]
[1740732163242,3.6682,129.85,129.74,7.7154]
[1740732163437,7.7124,129.8,129.79,0.05192764]
[1740732163643,13.42,129.81,129.7,3.7336]
[1740732163840,3.9911,129.8,129.7,3.7336]
[1740732164247,1.39083046,129.79,129.64,82.75385418]
[1740732164638,3.9911,129.8,129.64,82.75385418]
[1740732164639,3.7548,129.78,129.64,82.75385418]
[1740732164844,0.05037204,129.73,129.71,0.05627725]
[1740732165248,3.9911,129.8,129.73,7.7161]
[1740732165448,3.9911,129.8,129.71,0.05627725]
[1740732165648,0.05860573,129.78,129.74,0.04946836]
[1740732165943,3.7548,129.79,129.74,0.04946836]
[1740732166145,0.05407778,129.77,129.74,0.04946836]
[1740732167349,7.76847778,129.77,129.74,0.04946836]
[1740732168147,7.7148,129.76,129.74,0.04946836]
[1740732168450,0.05407778,129.77,129.74,0.04946836]
[1740732168650,7.7153,129.76,129.74,0.04946836]
[1740732168853,0.05407778,129.77,129.74,0.04946836]
[1740732169654,7.7154,129.75,129.74,0.04946836]
[1740732170154,0.05407778,129.77,129.66,3.9998]
[1740732170344,27.1049,129.78,129.63,217.5875]
[1740732171250,27.1049,129.78,129.68,7.719]
[1740732171455,0.04880524,129.72,129.69,0.0488324]
[1740732171755,27.1049,129.78,129.72,0.05132794]
[1740732171952,27.1049,129.78,129.63,217.5875]
[1740732172251,1.39107271,129.77,129.63,3.9299]
[1740732172655,7.72,129.68,129.61,3.8926]
[1740732172863,7.72,129.68,129.62,7.7229]
[1740732173058,7.72,129.68,129.61,3.8926]
[1740732173259,0.05185699,129.66,129.64,0.0519076]
[1740732173657,0.05185699,129.66,129.64,7.7736076]
[1740732174567,0.05185699,129.66,129.64,0.0519076]
[1740732174964,7.77285699,129.66,129.64,0.0519076]
[1740732175555,7.7214,129.65,129.64,0.0519076]
[1740732175961,7.7214,129.65,129.59,3.8499]
[1740732175962,0.05185699,129.66,129.57,3.9372]
[1740732176266,193.665,129.69,129.57,3.9372]
[1740732176667,193.665,129.69,129.6,7.7243]
[1740732177067,0.05229142,129.66,129.63,0.05335933]
[1740732178368,0.05229142,129.66,129.65,7.7214]
[1740732179571,7.718,129.71,129.67,7.7201]
[1740732179871,21.1841,129.76,129.64,3.8208]
[1740732180265,21.1841,129.76,129.65,3.9311]
[1740732180773,0.05617413,129.72,129.71,7.7177]
[1740732180968,209.9,129.79,129.65,17.3111]
[1740732181169,3.9606,129.78,129.7,0.04908571]
[1740732181364,0.05383196,129.73,129.7,0.04908571]
[1740732181571,7.7144,129.77,129.73,0.05009823]
[1740732181767,7.7144,129.77,129.65,17.3111]
[1740732181970,7.7144,129.77,129.74,0.05588717]
[1740732182165,0.05248931,129.72,129.65,17.3111]
[1740732182369,3.9606,129.78,129.65,17.3111]
[1740732182666,3.9606,129.78,129.65,3.9311]
[1740732183066,27.1006,129.78,129.65,3.9311]
[1740732183371,3.9606,129.78,129.65,3.9311]
[1740732183569,0.05237584,129.73,129.7,0.05862015]
[1740732183771,0.05237584,129.73,129.69,7.7185]
[1740732183972,7.7158,129.75,129.7,0.05426929]
[1740732184167,0.05690648,129.72,129.7,0.05426929]
[1740732184365,3.9606,129.78,129.65,3.9311]
[1740732184366,11.6744,129.78,129.65,3.9311]
[1740732184868,3.9606,129.78,129.73,7.7166]
[1740732185062,3.9606,129.78,129.65,3.9311]
[1740732185572,0.05874873,129.73,129.7,0.04932135]
[1740732185968,23.19874873,129.73,129.61,113.95758484]
[1740732186165,31.165,129.72,129.61,113.95758484]
[1740732186668,3.6861,129.71,129.61,121.68118484]
[1740732187074,3.6861,129.71,129.61,113.95758484]
[1740732187275,7.7212,129.66,129.65,0.05321768]
[1740732187773,0.05787324,129.67,129.65,0.05321768]
[1740732190175,7.7208,129.66,129.65,0.05321768]
[1740732191275,0.05787324,129.67,129.55,31.20373066]
[1740732191470,3.9584,129.65,129.55,38.89343066]
[1740732191681,27.0984,129.65,129.55,38.89343066]
[1740732191879,217.0984,129.65,129.55,31.20373066]
[1740732192078,193.9584,129.65,129.55,31.20373066]
[1740732192580,0.05622684,129.61,129.59,0.05527541]
[1740732196486,13.4,129.73,129.59,3.91527541]
[1740732196687,1.39155268,129.72,129.6,3.9706]
[1740732196887,21.3609,129.73,129.65,7.7209]
[1740732196888,7.7192,129.69,129.65,7.7209]
[1740732197085,25.1103,129.73,129.61,3.9279]
[1740732197281,11.7103,129.73,129.61,3.9279]
[1740732197586,0.05901665,129.68,129.66,0.05454248]
[1740732197982,11.7103,129.73,129.66,0.05454248]
[1740732198177,0.05330066,129.68,129.66,0.05454248]
[1740732198381,7.72,129.68,129.66,0.05454248]
[1740732198585,0.05259487,129.68,129.66,0.05454248]
[1740732200184,0.05259487,129.68,129.67,7.7202]
[1740732201181,0.05259487,129.68,129.66,7.77504248]
[1740732201483,0.05259487,129.68,129.66,0.05454248]
[1740732201876,0.05259487,129.68,129.67,7.7202]
[1740732202587,0.05259487,129.68,129.66,0.05454248]
[1740732203085,0.05259487,129.68,129.67,7.7202]
[1740732204386,4.0314,129.73,129.69,7.7186]
[1740732204584,7.7161,129.74,129.62,3.7198]
[1740732205083,3.6411,129.76,129.62,3.7198]
[1740732205084,7.7155,129.75,129.62,3.7198]
[1740732205779,0.05911546,129.7,129.67,0.05428678]
[1740732206087,13.34,129.81,129.67,0.05428678]
[1740732206088,493.17473465,129.84,129.68,13.34]
[1740732206389,96.89983465,129.84,129.69,3.7738]
[1740732207188,0.05458714,129.78,129.75,0.0523003]
[1740732207586,7.7108,129.83,129.69,3.7738]
[1740732207787,0.05209009,129.78,129.77,7.7137]
[1740732208288,3.6451,129.84,129.76,0.05150719]
[1740732208289,0.05828888,129.79,129.76,0.05150719]
[1740732208493,3.6451,129.84,129.69,143.12324255]
[1740732208790,0.05123379,129.79,129.76,7.76613065]
[1740732209191,0.05123379,129.79,129.69,143.12324255]
[1740732209391,0.05123379,129.79,129.76,0.04981238]
[1740732209588,0.0499315,129.79,129.7,3.9443]
[1740732209793,3.6451,129.84,129.76,0.05002118]
[1740732210091,0.05671081,129.76,129.7,3.9443]
[1740732210292,3.6451,129.84,129.79,0.05767067]
[1740732210487,7.7125,129.8,129.76,7.7147]
[1740732210694,0.05862039,129.83,129.8,0.05436034]
[1740732210890,3.6451,129.84,129.7,3.9443]
[1740732211090,0.05319655,129.83,129.74,7.7156]
[1740732211290,3.6451,129.84,129.76,0.05583191]
[1740732211496,7.76154042,129.8,129.71,3.6507]
[1740732211685,0.04874042,129.8,129.79,0.05928898]
[1740732211889,3.6451,129.84,129.75,7.715]
[1740732212089,3.6451,129.84,129.71,3.6507]
[1740732212090,0.05394834,129.81,129.78,0.05048139]
[1740732213693,0.05394834,129.81,129.79,7.7129]
[1740732213995,0.05394834,129.81,129.78,0.05048139]
[1740732214299,0.05394834,129.81,129.78,7.76398139]
[1740732215493,190.0,129.94,129.78,0.05048139]
[1740732215693,11.593,129.91,129.79,3.8671]
[1740732215989,11.593,129.91,129.79,7.8888]
[1740732216195,11.593,129.91,129.75,13.28]
[1740732216397,1.3895911,129.9,129.75,13.28]
[1740732216592,7.7116,129.82,129.75,13.28]
[1740732216794,0.05529045,129.84,129.81,0.05863166]
[1740732216999,1.38973288,129.9,129.78,7.7134]
[1740732217193,7.7117,129.82,129.81,0.05648392]
[1740732217395,190.0,129.9,129.75,13.28]
[1740732217694,0.05515289,129.83,129.8,0.05915378]
[1740732217892,0.05515289,129.83,129.78,7.7136]
[1740732218095,0.05318821,129.83,129.8,0.05355076]
[1740732218296,7.7117,129.82,129.8,0.05355076]
[1740732220000,7.7118,129.81,129.8,0.05355076]
[1740732220197,0.05318821,129.83,129.74,7.7156]
[1740732220402,3.9648,129.82,129.72,4.0217]
[1740732221301,7.7134,129.79,129.72,4.0217]
[1740732221504,0.0580273,129.78,129.76,0.05792262]
[1740732222102,0.0580273,129.78,129.77,7.7142]
[1740732222998,2.73e-05,129.78,129.77,7.7142]
[1740732223199,7.7108,129.83,129.76,0.05792262]
[1740732223592,3.9324,129.85,129.72,4.0217]
[1740732223802,7.7119,129.81,129.72,4.0217]
[1740732224302,0.05666382,129.78,129.75,0.05662359]
[1740732227101,0.05666382,129.78,129.75,7.77192359]
[1740732227504,0.05666382,129.78,129.75,0.05662359]
[1740732227706,7.77046382,129.78,129.75,0.05662359]
[1740732228206,0.05666382,129.78,129.75,7.77202359]
[1740732228405,0.05666382,129.78,129.75,0.05662359]
[1740732229105,0.05666382,129.78,129.75,7.77202359]
[1740732229297,0.05666382,129.78,129.75,0.05662359]
[1740732230103,0.05666382,129.78,129.77,7.7142]
[1740732231102,0.05666382,129.78,129.75,0.05662359]
[1740732232005,3.9928,129.84,129.75,0.05662359]
[1740732232307,3.9928,129.84,129.72,143.37114255]
[1740732232496,11.703,129.84,129.8,7.7118]
[1740732232898,3.9928,129.84,129.72,143.37114255]
[1740732233104,0.04983522,129.79,129.77,0.05613358]
[1740732233903,0.04983522,129.79,129.77,7.77023358]
[1740732234101,0.04983522,129.79,129.77,0.05613358]
[1740732234303,0.04983522,129.79,129.77,7.77013358]
[1740732234498,0.04983522,129.79,129.77,0.05613358]
[1740732235396,7.76323522,129.79,129.77,0.05613358]
[1740732235598,0.04983522,129.79,129.77,0.05613358]
[1740732236103,7.7136,129.78,129.77,0.05613358]
[1740732236309,0.04983522,129.79,129.7,3.8721]
[1740732236507,1.39028899,129.83,129.7,3.8721]
[1740732236713,1.39028899,129.83,129.69,3.8449]
[1740732237213,36.48,129.84,129.69,7.5699]
[1740732237503,0.05560508,129.77,129.75,9.075e-05]
[1740732237708,1.39051329,129.83,129.68,31.20373066]
[1740732237907,7.7186,129.7,129.68,31.20373066]
[1740732238306,13.36,129.77,129.68,31.20373066]
[1740732238504,7.7189,129.7,129.68,31.20373066]
[1740732238701,7.7189,129.7,129.65,31.20373066]
[1740732238902,7.7189,129.7,129.68,0.05787701]
[1740732239107,0.0541107,129.69,129.68,0.05787701]
[1740732239507,0.0541107,129.69,129.68,7.77747701]
[1740732240011,1.07e-05,129.69,129.68,7.77747701]
[1740732240311,3.9924,129.76,129.72,7.7168]
[1740732240514,3.9924,129.76,129.68,0.05787701]
[1740732240705,3.9924,129.76,129.68,7.7191]
[1740732240905,3.9924,129.76,129.65,31.20373066]
[1740732241201,3.9924,129.76,129.64,3.725]
[1740732241405,0.05281465,129.72,129.69,0.05539552]
[1740732241806,0.05281465,129.72,129.7,7.7183]
[1740732242013,0.05281465,129.72,129.69,0.05539552]
[1740732242906,0.05281465,129.72,129.64,11.4466]
[1740732243207,13.36,129.73,129.58,121.42612736]
[1740732243402,7.3558,129.72,129.59,117.98568484]
[1740732243609,7.7206,129.67,129.65,36.92089698]
[1740732244209,7.7208,129.66,129.65,30.90667413]
[1740732244408,0.05586315,129.67,129.65,30.90667413]
[1740732246413,3.91586315,129.67,129.64,63.34552831]
[1740732246609,13.38,129.66,129.63,111.45175567]
[1740732246807,7.7219,129.64,129.63,111.45175567]
[1740732247010,207.24,129.66,129.57,5.68248263]
[1740732247210,1.39240897,129.65,129.57,5.68248263]
[1740732247710,0.04875447,129.63,129.6,0.05645716]
[1740732248013,7.7237,129.61,129.6,5.716e-05]
[1740732248214,3.90875447,129.63,129.57,5.1e-05]
[1740732248412,1.39277557,129.62,129.55,47.67557703]
[1740732248813,7.7267,129.56,129.55,47.67557703]
[1740732249014,13.46,129.56,129.55,47.67557703]
[1740732249210,25.0467,129.56,129.55,47.67557703]
[1740732249611,17.32,129.56,129.55,47.67557703]
[1740732249915,25.0467,129.56,129.55,47.67557703]
[1740732250415,17.32,129.56,129.54,0.05707919]
[1740732251109,7.7273,129.55,129.54,0.05707919]
[1740732251613,11.5873,129.55,129.54,0.05707919]
[1740732252006,3.86,129.55,129.54,0.05707919]
[1740732253117,13.46,129.56,129.54,0.05707919]
[1740732253613,0.04974944,129.57,129.55,7.7273]
[1740732253811,0.04974944,129.57,129.54,0.05707919]
[1740732254715,3.90974944,129.57,129.54,0.05707919]
[1740732254913,0.04974944,129.57,129.54,0.05707919]
[1740732255113,7.7273,129.55,129.54,0.05707919]
[1740732255513,11.5873,129.55,129.54,0.05707919]
[1740732256316,11.5873,129.55,129.54,7.919e-05]
[1740732257018,3.86,129.55,129.54,7.919e-05]
[1740732257409,190.0,129.56,129.54,7.919e-05]
[1740732257813,190.0,129.56,129.4,13.44]
[1740732258420,190.0,129.56,129.52,7.729]
[1740732258721,233.22,129.59,129.4,13.44]
[1740732258924,13.44,129.58,129.49,7.7304]
[1740732259117,0.05032533,129.51,129.49,7.7304]
[1740732259319,7.7268,129.56,129.52,0.05406818]
[1740732259523,7.7268,129.56,129.49,7.7304]
[1740732259718,0.05617972,129.55,129.53,0.05921896]
[1740732260121,36.58,129.58,129.4,13.44]
[1740732260423,23.14,129.56,129.46,7.7323]
[1740732260720,0.0560475,129.5,129.48,0.05625378]
[1740732260917,7.7296,129.52,129.47,7.7321]
[1740732261120,3.8159,129.55,129.4,13.44]
[1740732261320,0.05867624,129.49,129.47,0.05509871]
[1740732261726,3.8159,129.55,129.4,13.44]
[1740732261921,0.05533055,129.49,129.47,0.05178386]
[1740732262419,0.05691265,129.49,129.47,0.0549623]
[1740732264319,0.05691265,129.49,129.47,7.7868623]
[1740732264526,0.05691265,129.49,129.47,0.0549623]
[1740732265424,7.78781265,129.49,129.47,0.0549623]
[1740732266719,7.7315,129.48,129.47,0.0549623]
[1740732267631,0.05691265,129.49,129.38,11.7016]
[1740732267924,30.5918,129.5,129.38,11.7016]
[1740732268128,30.5918,129.5,129.38,19.4389]
[1740732268822,7.7345,129.43,129.38,19.4389]
[1740732269329,0.05420753,129.42,129.39,0.05062157]
[1740732270030,7.78930753,129.42,129.39,0.05062157]
[1740732270229,0.05420753,129.42,129.39,0.05062157]
[1740732270831,7.4518,129.5,129.39,3.96182157]
[1740732271030,30.5918,129.5,129.39,3.96182157]
[1740732271230,30.5918,129.5,129.39,3.9112]
[1740732271731,7.7337,129.45,129.4,7.7362]
[1740732272030,0.05115546,129.44,129.41,0.05841537]
[1740732272526,1.39405508,129.49,129.38,7.8605]
[1740732272730,1.39405508,129.49,129.41,0.05541483]
[1740732272731,0.05675719,129.44,129.41,0.05541483]
[1740732273129,17.51675719,129.44,129.33,7.5742]
[1740732273433,11.31,129.43,129.41,1.846e-05]
[1740732273630,11.31,129.43,129.33,7.5742]
[1740732274028,11.31,129.43,129.35,7.7388]
[1740732274029,7.7363,129.4,129.35,7.7388]
[1740732274331,11.31,129.43,129.33,7.5742]
[1740732274531,0.0502054,129.39,129.36,0.05227397]
[1740732275135,0.0502054,129.39,129.38,7.7375]
[1740732275331,13.62,129.49,129.36,0.05227397]
[1740732275526,7.7331,129.46,129.41,7.7354]
[1740732276428,0.05768176,129.45,129.42,0.05886556]
[1740732276829,13.62,129.51,129.33,7.5742]
[1740732277029,0.05265459,129.45,129.42,0.05385094]
[1740732277433,13.62,129.51,129.35,13.62]
[1740732277629,0.05164955,129.45,129.42,0.0517117]
[1740732277932,13.62,129.51,129.35,13.62]
[1740732278133,13.62,129.51,129.42,7.7347]
[1740732278435,36.76,129.51,129.35,13.62]
[1740732278631,36.76,129.51,129.4,7.7357]
[1740732278934,0.05071732,129.48,129.45,6.71e-06]
[1740732279232,3.86,129.48,129.33,7.5742]
[1740732279432,23.14,129.49,129.33,7.5742]
[1740732279737,23.14,129.5,129.33,7.5742]
[1740732280136,0.05520385,129.42,129.4,0.0555219]
[1740732280532,23.14,129.5,129.37,7.7375]
[1740732280836,0.05535399,129.42,129.34,3.8172]
[1740732281037,23.14,129.5,129.34,3.8172]
[1740732281438,23.14,129.5,129.37,7.7377]
[1740732281738,23.14,129.5,129.34,3.8172]
[1740732281932,24.68440154,129.5,129.35,7.7389]
[1740732282236,0.05252566,129.45,129.42,4.057e-05]
[1740732282435,36.74,129.44,129.42,4.057e-05]
[1740732282637,48.0346,129.44,129.34,3.8172]
[1740732283435,0.05624855,129.4,129.38,0.05912098]
[1740732285231,13.58,129.47,129.38,0.05912098]
[1740732285437,15.14452081,129.49,129.38,0.05912098]
[1740732285632,15.14452081,129.49,129.34,3.8172]
[1740732285938,10.63401772,129.5,129.34,3.8172]
[1740732286336,7.7321,129.47,129.43,7.7341]
[1740732286535,10.63401772,129.5,129.41,7.609]
[1740732286739,0.05927607,129.43,129.33,13.6]
[1740732287039,13.58,129.46,129.44,0.05932234]
[1740732287337,7.7348,129.43,129.38,7.7373]
[1740732287740,36.77197511,129.46,129.44,3.37e-05]
[1740732287939,36.72,129.46,129.35,3.7557]
[1740732288537,13.58,129.46,129.39,7.7368]
[1740732288843,13.58,129.46,129.35,3.7557]
[1740732289141,0.05044276,129.44,129.41,0.05907579]
[1740732289735,11.1989,129.53,129.41,0.05907579]
[1740732290133,11.1989,129.53,129.35,3.7557]
[1740732290332,34.3389,129.53,129.35,3.7557]
[1740732290543,34.3389,129.53,129.41,7.7354]
[1740732291043,0.05902046,129.48,129.46,0.04951913]
[1740732291237,7.7317,129.48,129.35,3.7557]
[1740732291434,0.05317856,129.48,129.35,3.7557]
[1740732291636,0.05317856,129.48,129.46,0.04862719]
[1740732291836,34.3389,129.53,129.35,3.7557]
[1740732292033,34.3389,129.53,129.46,0.05136456]
[1740732292034,0.05480343,129.48,129.46,0.05136456]
[1740732292236,11.1989,129.53,129.43,7.7344]
[1740732292538,11.1989,129.53,129.35,3.7557]
[1740732292539,0.05039922,129.48,129.46,0.05715254]